[Event "26th Abu Dhabi Master 2019"]
[Site "Abu Dhabi"]
[Date "2019.08.08"]
[Round "7.65"]
[White "Bartel, Marta"]
[Black "Ashraf, Artin"]
[Result "1/2-1/2"]
[ECO "D83"]
[WhiteElo "2260"]
[BlackElo "2141"]
[Annotator "NA"]
[PlyCount "73"]
[EventDate "2019.08.02"]
[EventType "swiss"]
[EventCountry "UAE"]
[SourceTitle "playchess.com"]
[Source "ChessBase"]
[SourceQuality "1"]
[TimeControl "5400+30"]

1. d4 {[%emt 0:00:00]} Nf6 {[%emt 0:00:57]} 2. c4 {[%emt 0:00:00]} g6 {[%emt 0:00:28]} 3. Nc3 {[%emt 0:00:00]} d5 {[%emt 0:00:24]} 4. Bf4 {[%emt 0:00:23]} Bg7 {[%emt 0:00:44]} 5. e3 {[%emt 0:00:08]} O-O {[%emt 0:00:43]} 6. Rc1 {[%emt 0:00:04]} Be6 {[%emt 0:19:06]} 7. c5 {[%emt 0:00:50]} Nc6 {[%emt 0:03:25]} 8. Bd3 {[%emt 0:01:37]} Qd7 {[%emt 0:09:38]} 9. h3 {[%emt 0:03:35]} Nb4 {[%emt 0:04:18]} 10. Be2 {[%emt 0:04:03]} Ne4 {[%emt 0:02:18]} 11. a3 {[%emt 0:02:18]} Nxc3 {[%emt 0:01:13]} 12. Rxc3 {[%emt 0:00:08]} Nc6 {[%emt 0:00:19]} 13. Nf3 {[%emt 0:01:25]} Rfe8 {[%emt 0:03:17]} 14. g4 {[%emt 0:16:10]} f6 {[%emt 0:02:37]} 15. Bg3 {[%emt 0:02:54]} Bf7 {[%emt 0:01:31]} 16. Bb5 {[%emt 0:04:30]} e5 {[%emt 0:02:37]} 17. O-O {[%emt 0:03:26]} a6 {[%emt 0:03:38]} 18. Ba4 {[%emt 0:00:27]} Rad8 {[%emt 0:00:30]} 19. b4 {[%emt 0:03:25]} h5 {[%emt 0:05:00]} 20. gxh5 {[%emt 0:10:02]} Qxh3 {[%emt 0:03:12]} 21. dxe5 {[%emt 0:06:21]} fxe5 {[%emt 0:01:39]} 22. Ng5 {[%emt 0:02:19]} Qxh5 {[%emt 0:00:56]} 23. Nxf7 {[%emt 0:00:07]} Kxf7 {[%emt 0:01:21]} 24. Qxh5 {[%emt 0:03:36]} gxh5 {[%emt 0:00:22]} 25. Rd3 {[%emt 0:00:48]} e4 {[%emt 0:02:38]} 26. Rdd1 {[%emt 0:00:29]} Be5 {[%emt 0:00:59]} 27. Bh4 {[%emt 0:04:24]} Bf6 {[%emt 0:00:45]} 28. Bg3 {[%emt 0:00:14]} Be5 {[%emt 0:00:10]} 29. Bh4 {[%emt 0:00:05]} Bf6 {[%emt 0:00:27]} 30. Bg3 {[%emt 0:00:13]} Rg8 31. Kh1 Ne5 32. Bxe5 Bxe5 33. f3 exf3 34. Rxf3+ Ke6 35. c6 b5 36. Bb3 Rg4 37. Rh3 1/2-1/2

[Event "26th Abu Dhabi Master 2019"]
[Site "Abu Dhabi"]
[Date "2019.08.08"]
[Round "7.66"]
[White "Moksh Amit Doshi"]
[Black "Salonika, Saina"]
[Result "1-0"]
[ECO "A85"]
[WhiteElo "2229"]
[BlackElo "2127"]
[Annotator "NA"]
[PlyCount "91"]
[EventDate "2019.08.02"]
[EventType "swiss"]
[EventCountry "UAE"]
[SourceTitle "playchess.com"]
[Source "ChessBase"]
[SourceQuality "1"]
[TimeControl "5400+30"]

1. d4 {[%emt 0:03:53]} f5 {[%emt 0:00:00]} 2. c4 {[%emt 0:01:28]} Nf6 {[%emt 0:00:05]} 3. Nc3 {[%emt 0:00:06]} g6 {[%emt 0:00:10]} 4. h4 {[%emt 0:01:02]} Bg7 {[%emt 0:00:57]} 5. h5 {[%emt 0:00:59]} O-O {[%emt 0:20:51]} 6. hxg6 {[%emt 0:02:13]} hxg6 {[%emt 0:00:05]} 7. Bf4 {[%emt 0:05:51]} e6 {[%emt 0:06:41]} 8. Nf3 {[%emt 0:04:55]} d6 {[%emt 0:01:14]} 9. Qd2 {[%emt 0:01:42]} Qe7 {[%emt 0:06:07]} 10. O-O-O {[%emt 0:01:03]} b6 {[%emt 0:04:10]} 11. Bh6 {[%emt 0:03:32]} Bd7 {[%emt 0:23:27]} 12. Qg5 {[%emt 0:01:56]} Be8 {[%emt 0:01:06]} 13. e4 {[%emt 0:02:37]} Nc6 {[%emt 0:03:34]} 14. exf5 {[%emt 0:02:59]} exf5 {[%emt 0:00:47]} 15. c5 {[%emt 0:03:05]} Ng4 {[%emt 0:13:18]} 16. Bc4+ {[%emt 0:08:19]} Bf7 {[%emt 0:00:06]} 17. Qxg6 {[%emt 0:00:23]} Qf6 {[%emt 0:12:48]} 18. Qxf6 {[%emt 0:02:24]} Bxf6 {[%emt 0:00:09]} 19. Bb5 {[%emt 0:06:12]} Nb4 {[%emt 0:02:49]} 20. Bxf8 {[%emt 0:01:17]} Nxf2 {[%emt 0:00:46]} 21. Bh6 {[%emt 0:01:12]} Nxh1 {[%emt 0:00:26]} 22. Rxh1 {[%emt 0:00:10]} dxc5 {[%emt 0:00:10]} 23. Bg5 {[%emt 0:01:27]} Bxg5+ {[%emt 0:00:28]} 24. Nxg5 {[%emt 0:00:08]} cxd4 {[%emt 0:00:05]} 25. Nxf7 {[%emt 0:00:46]} Kxf7 {[%emt 0:00:06]} 26. Bc4+ {[%emt 0:00:05]} Kg6 {[%emt 0:00:49]} 27. Nb5 {[%emt 0:03:29]} c5 {[%emt 0:00:09]} 28. a3 {[%emt 0:00:05]} a6 {[%emt 0:00:44]} 29. Nd6 {[%emt 0:01:11]} Nc6 {[%emt 0:00:22]} 30. Bf7+ {[%emt 0:00:38]} Kf6 {[%emt 0:00:45]} 31. Bd5 {[%emt 0:00:04]} Rd8 {[%emt 0:00:33]} 32. Rh6+ {[%emt 0:00:51]} Ke5 {[%emt 0:00:08]} 33. Bxc6 {[%emt 0:00:07]} Rxd6 {[%emt 0:00:07]} 34. Rxd6 {[%emt 0:00:04]} Kxd6 {[%emt 0:00:05]} 35. Bb7 {[%emt 0:00:04]} a5 {[%emt 0:00:49]} 36. Ba6 {[%emt 0:01:30]} Ke5 {[%emt 0:00:48]} 37. Kd2 {[%emt 0:00:06]} a4 {[%emt 0:02:10]} 38. Bb5 {[%emt 0:00:15]} Kf4 {[%emt 0:00:13]} 39. Bxa4 {[%emt 0:01:25]} Kg3 {[%emt 0:00:05]} 40. Bc6 {[%emt 0:00:04]} Kf2 {[%emt 0:00:11]} 41. b3 {[%emt 0:00:06]} Kf1 {[%emt 0:00:12]} 42. a4 {[%emt 0:00:06]} Kf2 {[%emt 0:00:10]} 43. Bf3 {[%emt 0:00:39]} Kf1 {[%emt 0:00:25]} 44. Kd3 {[%emt 0:00:03]} Ke1 {[%emt 0:00:11]} 45. b4 {[%emt 0:00:14]} cxb4 {[%emt 0:00:25]} 46. Kxd4 {[%emt 0:00:06]} 1-0

[Event "26th Abu Dhabi Master 2019"]
[Site "Abu Dhabi"]
[Date "2019.08.08"]
[Round "7.67"]
[White "Wang, Shanshan"]
[Black "Mithil, Ajgaonkar"]
[Result "0-1"]
[ECO "B17"]
[WhiteElo "2122"]
[BlackElo "2314"]
[Annotator "NA"]
[PlyCount "62"]
[EventDate "2019.08.02"]
[EventType "swiss"]
[EventCountry "UAE"]
[SourceTitle "playchess.com"]
[Source "ChessBase"]
[SourceQuality "1"]
[TimeControl "5400+30"]

1. e4 c6 2. d4 d5 3. Nc3 dxe4 4. Nxe4 Nd7 5. Nf3 Ngf6 6. Ng3 e6 7. Bd3 Be7 8. O-O O-O 9. c3 b6 10. Qe2 Bb7 11. Re1 c5 12. Nf5 exf5 13. Qxe7 Qc7 14. Qe2 Rae8 15. Ne5 Ng4 16. Bf4 Ndxe5 17. dxe5 f6 18. Bxf5 Nxe5 19. f3 c4 20. Kh1 Qc5 21. Be3 Qb5 22. a4 Qc6 23. Qc2 Nxf3 24. Bxh7+ Kh8 25. Re2 Nh4 26. Rg1 f5 27. Bg5 Rxe2 28. Qxe2 Nxg2 29. Rxg2 Qxg2+ 30. Qxg2 Bxg2+ 31. Kxg2 Kxh7 0-1

[Event "26th Abu Dhabi Master 2019"]
[Site "Abu Dhabi"]
[Date "2019.08.08"]
[Round "7.68"]
[White "Srijit Paul"]
[Black "Soham Datar"]
[Result "1-0"]
[ECO "B90"]
[WhiteElo "2298"]
[BlackElo "2129"]
[Annotator "NA"]
[PlyCount "145"]
[EventDate "2019.08.02"]
[EventType "swiss"]
[EventCountry "UAE"]
[SourceTitle "playchess.com"]
[Source "ChessBase"]
[SourceQuality "1"]
[TimeControl "5400+30"]

1. e4 {[%emt 0:00:00]} c5 {[%emt 0:00:00]} 2. Nf3 {[%emt 0:00:06]} d6 {[%emt 0:00:00]} 3. d4 {[%emt 0:00:05]} cxd4 {[%emt 0:00:00]} 4. Nxd4 {[%emt 0:00:06]} Nf6 {[%emt 0:00:00]} 5. Nc3 {[%emt 0:00:07]} a6 {[%emt 0:00:00]} 6. h3 {[%emt 0:00:05]} e5 {[%emt 0:00:00]} 7. Nde2 {[%emt 0:00:04]} h5 {[%emt 0:00:04]} 8. g3 {[%emt 0:00:04]} Nbd7 {[%emt 0:02:14]} 9. a4 {[%emt 0:00:33]} b6 {[%emt 0:00:11]} 10. Bg2 {[%emt 0:00:07]} Bb7 {[%emt 0:00:05]} 11. O-O {[%emt 0:01:03]} Be7 {[%emt 0:00:53]} 12. Bg5 {[%emt 0:02:15]} Rc8 {[%emt 0:01:06]} 13. Qd2 {[%emt 0:02:03]} Qc7 {[%emt 0:00:25]} 14. Rad1 {[%emt 0:01:18]} O-O {[%emt 0:00:19]} 15. Kh1 {[%emt 0:06:37]} Rfe8 {[%emt 0:01:30]} 16. f4 {[%emt 0:15:11]} Qc4 {[%emt 0:04:09]} 17. Qe3 {[%emt 0:01:40]} Qc5 {[%emt 0:02:30]} 18. Qf3 {[%emt 0:03:40]} b5 {[%emt 0:06:19]} 19. axb5 {[%emt 0:04:32]} axb5 {[%emt 0:00:05]} 20. fxe5 {[%emt 0:00:09]} Nxe5 {[%emt 0:00:38]} 21. Qf5 {[%emt 0:00:33]} g6 {[%emt 0:07:46]} 22. Qf4 {[%emt 0:02:25]} Ned7 {[%emt 0:14:49]} 23. Nd4 {[%emt 0:00:25]} Qe5 {[%emt 0:10:16]} 24. Qxe5 {[%emt 0:02:06]} dxe5 {[%emt 0:00:04]} 25. Ndxb5 {[%emt 0:00:06]} Ba6 {[%emt 0:01:41]} 26. Bxf6 {[%emt 0:05:53]} Nxf6 {[%emt 0:01:12]} 27. Rxf6 {[%emt 0:00:35]} Bxb5 {[%emt 0:02:59]} 28. Rf2 {[%emt 0:00:20]} Bc6 {[%emt 0:03:43]} 29. Nd5 {[%emt 0:01:19]} Bxd5 {[%emt 0:02:35]} 30. Rxd5 {[%emt 0:00:19]} Bg5 {[%emt 0:00:33]} 31. Bf1 {[%emt 0:00:54]} Bc1 {[%emt 0:01:41]} 32. b3 {[%emt 0:01:40]} Re7 {[%emt 0:00:40]} 33. Bc4 {[%emt 0:00:10]} Kg7 {[%emt 0:00:26]} 34. c3 {[%emt 0:00:52]} Ra8 {[%emt 0:02:32]} 35. Rd1 {[%emt 0:00:24]} Be3 {[%emt 0:00:55]} 36. Rf3 {[%emt 0:00:08]} Bb6 {[%emt 0:00:41]} 37. Rdf1 {[%emt 0:00:15]} Rf8 {[%emt 0:02:21]} 38. Bd5 {[%emt 0:03:17]} f5 {[%emt 0:01:24]} 39. b4 {[%emt 0:00:29]} Bc7 {[%emt 0:02:14]} 40. c4 {[%emt 0:00:34]} f4 {[%emt 0:00:04]} 41. c5 {[%emt 0:00:07]} g5 {[%emt 0:00:20]} 42. g4 {[%emt 0:00:13]} hxg4 {[%emt 0:00:16]} 43. hxg4 {[%emt 0:00:03]} Rh8+ {[%emt 0:00:17]} 44. Kg2 {[%emt 0:00:05]} Rh4 {[%emt 0:00:06]} 45. Rh3 {[%emt 0:00:28]} Rxh3 {[%emt 0:00:34]} 46. Kxh3 {[%emt 0:00:06]} Kf6 {[%emt 0:00:02]} 47. Ra1 {[%emt 0:00:10]} Rh7+ {[%emt 0:00:10]} 48. Kg2 {[%emt 0:00:33]} Rh4 {[%emt 0:00:38]} 49. Ra6+ {[%emt 0:00:25]} Ke7 {[%emt 0:00:10]} 50. Be6 {[%emt 0:00:05]} Rh8 {[%emt 0:00:52]} 51. b5 {[%emt 0:00:28]} f3+ {[%emt 0:00:26]} 52. Kxf3 {[%emt 0:00:28]} Rh3+ {[%emt 0:00:04]} 53. Kg2 {[%emt 0:00:14]} Rc3 {[%emt 0:00:04]} 54. Bd5 {[%emt 0:01:50]} Rxc5 {[%emt 0:00:59]} 55. b6 {[%emt 0:00:04]} Rc2+ {[%emt 0:01:35]} 56. Kf1 {[%emt 0:00:21]} Bd6 {[%emt 0:01:11]} 57. b7 {[%emt 0:00:57]} Rb2 {[%emt 0:00:09]} 58. Ra8 {[%emt 0:00:04]} Kf6 {[%emt 0:01:24]} 59. Re8 {[%emt 0:00:08]} Kg7 {[%emt 0:00:43]} 60. Rd8 {[%emt 0:00:10]} Bc7 {[%emt 0:01:44]} 61. Rd7+ {[%emt 0:00:10]} Kh8 {[%emt 0:00:03]} 62. Rf7 {[%emt 0:03:16]} Bd6 {[%emt 0:01:11]} 63. Rf6 {[%emt 0:01:20]} Bc7 {[%emt 0:00:27]} 64. Rf5 {[%emt 0:00:27]} Kh7 {[%emt 0:02:37]} 65. Rxg5 {[%emt 0:01:01]} Rb5 {[%emt 0:02:39]} 66. Ke2 {[%emt 0:00:13]} Bb8 {[%emt 0:00:44]} 67. Kd3 {[%emt 0:00:16]} Ba7 {[%emt 0:00:31]} 68. Rxe5 {[%emt 0:00:25]} Kh6 {[%emt 0:00:12]} 69. g5+ {[%emt 0:00:10]} Kg7 {[%emt 0:00:15]} 70. Re6 {[%emt 0:00:06]} Kf8 {[%emt 0:00:17]} 71. Ra6 {[%emt 0:00:07]} Be3 {[%emt 0:02:33]} 72. Ra8+ {[%emt 0:00:18]} Kg7 {[%emt 0:00:23]} 73. Kxe3 {[%emt 0:00:07]} 1-0

[Event "26th Abu Dhabi Master 2019"]
[Site "Abu Dhabi"]
[Date "2019.08.08"]
[Round "7.69"]
[White "Mrudul Dehankar"]
[Black "Gomes, Mary Ann"]
[Result "1/2-1/2"]
[ECO "C11"]
[WhiteElo "2074"]
[BlackElo "2303"]
[Annotator "NA"]
[PlyCount "196"]
[EventDate "2019.08.02"]
[EventType "swiss"]
[EventCountry "UAE"]
[SourceTitle "playchess.com"]
[Source "ChessBase"]
[SourceQuality "1"]
[TimeControl "5400+30"]

1. e4 {[%emt 0:02:21]} e6 {[%emt 0:00:00]} 2. Nf3 {[%emt 0:00:16]} d5 {[%emt 0:00:00]} 3. Nc3 {[%emt 0:00:05]} Nf6 {[%emt 0:00:00]} 4. e5 {[%emt 0:00:05]} Nfd7 {[%emt 0:00:00]} 5. d4 {[%emt 0:00:05]} c5 {[%emt 0:00:00]} 6. dxc5 {[%emt 0:00:09]} Nc6 {[%emt 0:00:10]} 7. Bf4 {[%emt 0:00:10]} a6 {[%emt 0:00:54]} 8. a3 {[%emt 0:00:55]} Bxc5 {[%emt 0:00:15]} 9. Bd3 {[%emt 0:00:36]} Be7 {[%emt 0:01:10]} 10. h4 {[%emt 0:05:34]} Nc5 {[%emt 0:00:11]} 11. Rh3 {[%emt 0:04:54]} Nxd3+ {[%emt 0:11:35]} 12. Qxd3 {[%emt 0:01:13]} Bd7 {[%emt 0:00:18]} 13. h5 {[%emt 0:04:40]} Qa5 {[%emt 0:00:35]} 14. Kf1 {[%emt 0:06:58]} b5 {[%emt 0:03:44]} 15. Ne2 {[%emt 0:05:50]} b4 {[%emt 0:04:26]} 16. a4 {[%emt 0:05:31]} Rc8 {[%emt 0:01:45]} 17. Kg1 {[%emt 0:01:37]} Qb6 {[%emt 0:05:55]} 18. b3 {[%emt 0:18:24]} Bc5 {[%emt 0:00:27]} 19. Rf1 {[%emt 0:00:30]} Ne7 {[%emt 0:00:19]} 20. Bc1 {[%emt 0:02:18]} a5 {[%emt 0:03:32]} 21. Bb2 {[%emt 0:04:18]} Qc7 {[%emt 0:02:07]} 22. Ng5 {[%emt 0:14:48]} h6 {[%emt 0:00:57]} 23. Nf3 {[%emt 0:00:03]} Bb6 {[%emt 0:02:54]} 24. Rc1 {[%emt 0:02:40]} Qa7 {[%emt 0:07:17]} 25. Ned4 {[%emt 0:03:00]} Nf5 {[%emt 0:03:49]} 26. Qd2 {[%emt 0:10:46]} Nxd4 {[%emt 0:00:54]} 27. Nxd4 {[%emt 0:00:28]} Rc3 {[%emt 0:01:33]} 28. Rxc3 {[%emt 0:01:09]} Bxd4 {[%emt 0:02:31]} 29. Rc8+ {[%emt 0:00:03]} Bxc8 {[%emt 0:00:12]} 30. Bxd4 {[%emt 0:00:03]} Qb8 {[%emt 0:01:48]} 31. c3 {[%emt 0:02:10]} bxc3 {[%emt 0:03:27]} 32. Rxc3 {[%emt 0:00:05]} O-O {[%emt 0:01:42]} 33. Rg3 {[%emt 0:01:33]} Kh7 {[%emt 0:00:06]} 34. Qxa5 {[%emt 0:00:42]} Bd7 {[%emt 0:00:03]} 35. Rc3 {[%emt 0:00:54]} Rc8 {[%emt 0:00:13]} 36. Rxc8 {[%emt 0:01:29]} Qxc8 {[%emt 0:00:40]} 37. Qc3 {[%emt 0:01:26]} Qa6 {[%emt 0:00:32]} 38. Qc2+ {[%emt 0:00:32]} Kg8 {[%emt 0:00:09]} 39. f3 {[%emt 0:00:31]} Qa5 {[%emt 0:00:15]} 40. Qc3 {[%emt 0:00:23]} Qd8 {[%emt 0:00:16]} 41. Bf2 {[%emt 0:00:39]} Be8 {[%emt 0:02:09]} 42. Qc5 {[%emt 0:00:31]} Qb8 {[%emt 0:00:21]} 43. Qe7 {[%emt 0:00:21]} Bc6 {[%emt 0:02:00]} 44. Qc5 {[%emt 0:00:07]} Be8 {[%emt 0:00:29]} 45. a5 {[%emt 0:01:02]} Qxb3 {[%emt 0:03:13]} 46. Qc8 {[%emt 0:00:29]} Qa4 {[%emt 0:00:22]} 47. a6 {[%emt 0:00:29]} Kh7 {[%emt 0:00:18]} 48. a7 {[%emt 0:00:13]} Bc6 {[%emt 0:00:11]} 49. Qc7 {[%emt 0:00:47]} Kg8 {[%emt 0:02:09]} 50. Kh2 {[%emt 0:00:31]} Qf4+ {[%emt 0:00:37]} 51. Bg3 {[%emt 0:00:11]} Qa4 {[%emt 0:00:14]} 52. Kh3 {[%emt 0:00:51]} d4 {[%emt 0:00:29]} 53. Bf2 {[%emt 0:00:26]} Bd5 {[%emt 0:03:51]} 54. Bxd4 {[%emt 0:00:31]} Kh7 {[%emt 0:02:43]} 55. Be3 {[%emt 0:00:33]} Qa3 {[%emt 0:01:35]} 56. Qc2+ {[%emt 0:00:13]} Kg8 {[%emt 0:00:44]} 57. Qc8+ {[%emt 0:00:23]} Kh7 {[%emt 0:00:07]} 58. Qc2+ {[%emt 0:00:04]} Kg8 {[%emt 0:00:06]} 59. Qc5 {[%emt 0:01:17]} Qa1 {[%emt 0:01:25]} 60. Qd4 {[%emt 0:00:35]} Qa3 {[%emt 0:00:56]} 61. Kg3 {[%emt 0:00:24]} Kh7 {[%emt 0:00:41]} 62. Bd2 {[%emt 0:00:30]} Qa6 {[%emt 0:01:01]} 63. Bb4 {[%emt 0:00:29]} Qa4 {[%emt 0:01:19]} 64. Bc5 {[%emt 0:00:30]} Qa5 {[%emt 0:00:23]} 65. Qb4 {[%emt 0:00:31]} Qa1 {[%emt 0:00:28]} 66. Qd4 {[%emt 0:00:31]} Qe1+ {[%emt 0:00:41]} 67. Kh3 {[%emt 0:00:31]} Qh1+ {[%emt 0:00:13]} 68. Kg3 {[%emt 0:00:07]} Qe1+ {[%emt 0:00:11]} 69. Kh2 {[%emt 0:00:38]} Qa5 {[%emt 0:02:28]} 70. Bb4 {[%emt 0:00:45]} Qa4 {[%emt 0:00:11]} 71. Bc3 {[%emt 0:00:28]} Qa6 {[%emt 0:00:31]} 72. Kg3 {[%emt 0:00:33]} Kg8 {[%emt 0:00:17]} 73. Qc5 {[%emt 0:00:29]} Qa4 {[%emt 0:01:26]} 74. Bb4 {[%emt 0:00:29]} Kh7 {[%emt 0:03:07]} 75. Ba5 {[%emt 0:00:30]} Qe8 {[%emt 0:00:37]} 76. Qc2+ {[%emt 0:00:10]} Kg8 {[%emt 0:00:15]} 77. Qc7 {[%emt 0:00:32]} Kh7 {[%emt 0:01:14]} 78. Qb8 {[%emt 0:00:21]} Qc6 {[%emt 0:00:03]} 79. Qb1+ {[%emt 0:00:40]} Kg8 {[%emt 0:03:16]} 80. Qb6 {[%emt 0:00:10]} Qxb6 {[%emt 0:01:12]} 81. Bxb6 {[%emt 0:00:02]} g6 {[%emt 0:01:26]} 82. Bc5 {[%emt 0:00:39]} Kg7 {[%emt 0:00:44]} 83. Kg4 {[%emt 0:00:50]} Bc6 {[%emt 0:01:00]} 84. Be7 {[%emt 0:00:26]} Bd5 {[%emt 0:00:11]} 85. Bd6 {[%emt 0:01:07]} Bc6 {[%emt 0:00:10]} 86. Bc5 {[%emt 0:00:34]} Ba8 {[%emt 0:00:38]} 87. Bd6 {[%emt 0:00:28]} Bb7 {[%emt 0:00:13]} 88. hxg6 {[%emt 0:00:30]} fxg6 {[%emt 0:00:28]} 89. Ba3 {[%emt 0:00:32]} h5+ {[%emt 0:00:26]} 90. Kg5 {[%emt 0:00:28]} Ba8 {[%emt 0:00:19]} 91. Bd6 {[%emt 0:00:27]} Bb7 {[%emt 0:00:11]} 92. Kf4 {[%emt 0:00:36]} Kf7 {[%emt 0:00:10]} 93. Bc5 {[%emt 0:00:31]} Ba8 {[%emt 0:00:08]} 94. Bf2 {[%emt 0:00:25]} Bb7 {[%emt 0:00:09]} 95. g4 {[%emt 0:00:15]} hxg4 {[%emt 0:00:08]} 96. fxg4 {[%emt 0:00:22]} Ba8 {[%emt 0:00:09]} 97. Ke3 {[%emt 0:00:30]} Ke8 {[%emt 0:00:12]} 98. Bh4 {[%emt 0:00:31]} Bb7 {[%emt 0:00:17] Ke4} 1/2-1/2

[Event "26th Abu Dhabi Master 2019"]
[Site "Abu Dhabi"]
[Date "2019.08.08"]
[Round "7.70"]
[White "Mahdian, Anousha"]
[Black "Srija, Seshadri"]
[Result "0-1"]
[ECO "A67"]
[WhiteElo "2118"]
[BlackElo "2306"]
[Annotator "NA"]
[PlyCount "87"]
[EventDate "2019.08.02"]
[EventType "swiss"]
[EventCountry "UAE"]
[SourceTitle "playchess.com"]
[Source "ChessBase"]
[SourceQuality "1"]
[TimeControl "5400+30"]

1. d4 {[%emt 0:00:00]} Nf6 {[%emt 0:00:16]} 2. c4 {[%emt 0:00:00]} c5 {[%emt 0:00:17]} 3. d5 {[%emt 0:00:00]} e6 {[%emt 0:00:13]} 4. Nc3 {[%emt 0:00:00]} exd5 {[%emt 0:00:05]} 5. cxd5 {[%emt 0:00:00]} d6 {[%emt 0:00:05]} 6. e4 {[%emt 0:00:00]} g6 {[%emt 0:00:13]} 7. f4 {[%emt 0:00:00]} Bg7 {[%emt 0:00:30]} 8. Bb5+ {[%emt 0:00:05]} Nfd7 {[%emt 0:05:51]} 9. Be2 {[%emt 0:00:06]} O-O {[%emt 0:01:48]} 10. Nf3 {[%emt 0:00:49]} Re8 {[%emt 0:01:22]} 11. O-O {[%emt 0:00:39]} a6 {[%emt 0:04:44]} 12. a4 {[%emt 0:00:31]} Nf6 {[%emt 0:07:36]} 13. Nd2 {[%emt 0:05:41]} b6 {[%emt 0:01:51]} 14. Bf3 {[%emt 0:13:17]} h5 {[%emt 0:07:08]} 15. h3 {[%emt 0:05:04]} Nh7 {[%emt 0:11:33]} 16. Nc4 {[%emt 0:02:11]} f5 {[%emt 0:06:37]} 17. e5 {[%emt 0:34:38]} dxe5 {[%emt 0:02:02]} 18. fxe5 {[%emt 0:00:23]} Bxe5 {[%emt 0:00:38]} 19. Nxe5 {[%emt 0:00:05]} Rxe5 {[%emt 0:00:05]} 20. d6 {[%emt 0:05:17]} Ra7 {[%emt 0:00:09]} 21. Bf4 {[%emt 0:00:04]} Re8 {[%emt 0:00:16]} 22. d7 {[%emt 0:01:49]} Nxd7 {[%emt 0:03:58]} 23. Qb3+ {[%emt 0:04:55]} Kg7 {[%emt 0:01:41]} 24. Rad1 {[%emt 0:00:07]} Bb7 {[%emt 0:09:47]} 25. Nd5 {[%emt 0:09:47]} Bxd5 {[%emt 0:02:54]} 26. Bxd5 {[%emt 0:00:34]} Nhf6 {[%emt 0:06:35]} 27. Qc3 {[%emt 0:06:16]} Kh7 {[%emt 0:01:08]} 28. Bc6 {[%emt 0:04:37]} Re6 {[%emt 0:00:43]} 29. Bf3 {[%emt 0:02:08]} Ne4 {[%emt 0:01:41]} 30. Bxe4 {[%emt 0:00:52]} Rxe4 {[%emt 0:00:01]} 31. Rd6 {[%emt 0:02:24]} Qe7 {[%emt 0:01:57]} 32. Qg3 {[%emt 0:00:55]} Qg7 {[%emt 0:07:04]} 33. Rfd1 {[%emt 0:01:04]} Rb7 {[%emt 0:00:18]} 34. Qg5 {[%emt 0:00:38]} Nf8 {[%emt 0:00:41]} 35. Bd2 {[%emt 0:01:56]} Ne6 {[%emt 0:00:24]} 36. Qg3 {[%emt 0:00:06]} Nd4 {[%emt 0:00:39]} 37. Kh1 {[%emt 0:00:20]} f4 {[%emt 0:04:37]} 38. Qd3 {[%emt 0:00:28]} Qe5 {[%emt 0:04:53]} 39. Qxa6 {[%emt 0:00:03]} Rg7 {[%emt 0:00:38]} 40. Rd8 {[%emt 0:01:31]} f3 {[%emt 0:00:42]} 41. Qa8 {[%emt 0:00:33]} fxg2+ {[%emt 0:00:20]} 42. Kg1 {[%emt 0:00:15]} Ne2+ {[%emt 0:00:05]} 43. Kxg2 {[%emt 0:00:04]} Qg3+ {[%emt 0:00:06]} 44. Kf1 {[%emt 0:00:08]} 0-1

[Event "26th Abu Dhabi Master 2019"]
[Site "Abu Dhabi"]
[Date "2019.08.08"]
[Round "7.71"]
[White "Alinasab, Mobina"]
[Black "Srihari L"]
[Result "0-1"]
[ECO "B84"]
[WhiteElo "2280"]
[BlackElo "2101"]
[Annotator "NA"]
[PlyCount "138"]
[EventDate "2019.08.02"]
[EventType "swiss"]
[EventCountry "UAE"]
[SourceTitle "playchess.com"]
[Source "ChessBase"]
[SourceQuality "1"]
[TimeControl "5400+30"]

1. e4 {[%emt 0:00:00]} c5 {[%emt 0:00:00]} 2. Nf3 {[%emt 0:00:00]} d6 {[%emt 0:00:06]} 3. d4 {[%emt 0:00:00]} cxd4 {[%emt 0:00:24]} 4. Nxd4 {[%emt 0:00:00]} Nf6 {[%emt 0:00:07]} 5. Nc3 {[%emt 0:00:00]} a6 {[%emt 0:00:08]} 6. Be2 {[%emt 0:00:00]} e6 {[%emt 0:00:13]} 7. Be3 {[%emt 0:00:15]} Be7 {[%emt 0:00:10]} 8. f4 {[%emt 0:00:16]} O-O {[%emt 0:00:17]} 9. Qd3 {[%emt 0:00:04]} Qc7 {[%emt 0:03:30]} 10. O-O-O {[%emt 0:00:19]} b5 {[%emt 0:00:59]} 11. Bf3 {[%emt 0:13:17]} Bb7 {[%emt 0:00:08]} 12. e5 {[%emt 0:05:42]} dxe5 {[%emt 0:01:49]} 13. Ndxb5 {[%emt 0:12:39]} axb5 {[%emt 0:02:17]} 14. Nxb5 {[%emt 0:00:01]} Qc8 {[%emt 0:02:44]} 15. fxe5 {[%emt 0:07:25]} Nd5 {[%emt 0:02:00]} 16. a3 {[%emt 0:02:22]} Nd7 {[%emt 0:03:50]} 17. Bd4 {[%emt 0:04:21]} Nc5 {[%emt 0:04:55]} 18. Bxc5 {[%emt 0:05:09]} Qxc5 {[%emt 0:00:28]} 19. Nd6 {[%emt 0:05:28]} Ba6 {[%emt 0:18:58]} 20. Qd4 {[%emt 0:00:22]} Bxd6 {[%emt 0:02:40]} 21. exd6 {[%emt 0:00:51]} Qxd6 {[%emt 0:00:06]} 22. Bxd5 {[%emt 0:00:47]} Rad8 {[%emt 0:03:00]} 23. Bc4 {[%emt 0:02:42]} Qc7 {[%emt 0:01:48]} 24. Qxd8 {[%emt 0:01:45]} Rxd8 {[%emt 0:00:07]} 25. Rxd8+ {[%emt 0:16:03]} Qxd8 {[%emt 0:00:07]} 26. Bxa6 {[%emt 0:00:02]} Qg5+ {[%emt 0:00:22]} 27. Kb1 {[%emt 0:00:01]} Qxg2 {[%emt 0:00:14]} 28. Rd1 {[%emt 0:00:02]} g5 {[%emt 0:00:44]} 29. c4 {[%emt 0:05:49]} Qxh2 {[%emt 0:04:43]} 30. c5 {[%emt 0:03:58]} Qc7 {[%emt 0:01:15]} 31. b4 {[%emt 0:01:53]} g4 {[%emt 0:00:56]} 32. Bf1 {[%emt 0:04:23]} f5 {[%emt 0:03:06]} 33. Bc4 {[%emt 0:06:59]} Qe5 {[%emt 0:01:23]} 34. Rd6 {[%emt 0:02:28]} Qe4+ {[%emt 0:00:07]} 35. Bd3 {[%emt 0:00:01]} Qe1+ {[%emt 0:00:36]} 36. Kc2 {[%emt 0:00:38]} Qe5 {[%emt 0:05:22]} 37. Rd8+ {[%emt 0:01:28]} Kf7 {[%emt 0:00:21]} 38. c6 {[%emt 0:00:54]} g3 {[%emt 0:00:56]} 39. Rd7+ {[%emt 0:00:29]} Kf6 {[%emt 0:03:38]} 40. c7 {[%emt 0:00:29]} Qxc7+ {[%emt 0:00:04]} 41. Rxc7 {[%emt 0:00:04]} g2 {[%emt 0:00:04]} 42. Rxh7 {[%emt 0:00:51]} g1=Q {[%emt 0:00:05]} 43. b5 {[%emt 0:00:23]} f4 {[%emt 0:02:18]} 44. a4 {[%emt 0:00:44]} Qd4 {[%emt 0:00:25]} 45. Rh6+ {[%emt 0:00:33]} Ke7 {[%emt 0:00:13]} 46. a5 {[%emt 0:00:30]} Qa4+ {[%emt 0:00:05]} 47. Kb2 {[%emt 0:00:26]} Qxa5 {[%emt 0:01:00]} 48. Kb3 {[%emt 0:00:27]} Qd2 {[%emt 0:02:54]} 49. Bc4 {[%emt 0:00:20]} Qe3+ {[%emt 0:00:09]} 50. Kc2 {[%emt 0:00:26]} Qe4+ {[%emt 0:00:58]} 51. Kc3 {[%emt 0:00:19]} Qf3+ {[%emt 0:02:13]} 52. Kb4 {[%emt 0:00:33]} Qd1 {[%emt 0:02:04]} 53. b6 {[%emt 0:00:55]} Qb1+ {[%emt 0:01:48]} 54. Ka5 {[%emt 0:00:34]} Kd6 {[%emt 0:02:32]} 55. Bxe6 {[%emt 0:00:20]} Qa1+ {[%emt 0:03:16]} 56. Ba2+ {[%emt 0:00:23]} Kc5 {[%emt 0:01:55]} 57. Rh5+ {[%emt 0:00:20]} Kc6 {[%emt 0:00:22]} 58. Rh6+ {[%emt 0:00:32]} Kb7 {[%emt 0:00:08]} 59. Rh7+ {[%emt 0:00:10]} Kb8 {[%emt 0:00:07]} 60. Rh2 {[%emt 0:00:55]} f3 {[%emt 0:00:18]} 61. Ka6 {[%emt 0:00:42]} Qf1+ {[%emt 0:00:18]} 62. Ka5 {[%emt 0:00:12]} Qe1+ {[%emt 0:00:08]} 63. Ka4 {[%emt 0:00:49]} Qe4+ {[%emt 0:00:28]} 64. Kb3 {[%emt 0:00:34]} Qd3+ {[%emt 0:00:42]} 65. Ka4 {[%emt 0:00:24]} Qd4+ {[%emt 0:00:14]} 66. Ka3 {[%emt 0:00:20]} f2 {[%emt 0:00:16]} 67. Rh1 {[%emt 0:00:06]} Qc5+ {[%emt 0:01:42]} 68. Kb2 {[%emt 0:00:12]} Qxb6+ {[%emt 0:00:21]} 69. Bb3 {[%emt 0:00:20]} Qf6+ {[%emt 0:00:07]} 0-1